bitfinex/quotes_ETHUSD_20250815
["timestamp","ask_amount","ask_price","bid_price","bid_amount"]
[1755259026605,0.55,4641.0,4640.9,0.9217]
[1755259026794,3.833,4641.0,4640.9,0.9217]
[1755259027379,3.8322,4641.0,4640.9,0.9217]
[1755259027707,5.98690803,4641.0,4640.9,0.9217]
[1755259027867,5.98690803,4641.0,4640.9,0.001]
[1755259028493,6.09490803,4641.0,4640.9,0.001]
[1755259030345,6.55849308,4641.0,4640.9,0.001]
[1755259031733,6.55769308,4641.0,4640.9,0.0018]
[1755259037345,6.00929308,4641.0,4640.9,0.4765]
[1755259037549,6.55929308,4641.0,4640.9,0.4765]
[1755259038129,3.27629308,4641.0,4640.9,0.4765]
[1755259038336,6.09470803,4641.0,4640.9,0.4765]
[1755259038547,6.55829308,4641.0,4640.9,0.4765]
[1755259040221,2.81270803,4641.0,4640.9,0.9225]
[1755259040420,0.658,4641.0,4640.9,0.9225]
[1755259040626,3.94,4641.0,4640.9,0.9225]
[1755259041367,3.39,4641.0,4640.9,0.9225]
[1755259041534,5.54470803,4641.0,4640.9,0.9225]
[1755259042160,5.54470803,4641.0,4640.9,0.4765]
[1755259042759,5.54470803,4641.0,4640.9,0.0018]
[1755259044270,5.54470803,4641.0,4640.9,0.4745]
[1755259047353,3.39,4641.0,4640.9,0.4745]
[1755259047871,5.54470803,4641.0,4640.9,0.4745]
[1755259048271,5.54470803,4641.0,4640.9,0.0018]
[1755259050400,3.39,4641.0,4640.9,0.0018]
[1755259050686,5.54470803,4641.0,4640.9,0.0018]
[1755259050852,3.39,4641.0,4640.9,0.0018]
[1755259051189,5.54470803,4641.0,4640.9,0.0018]
[1755259057785,0.108,4641.1,4640.9,0.4478]
[1755259058092,3.281,4641.3,4640.9,0.9205]
[1755259058262,3.281,4641.3,4640.9,0.0018]
[1755259058455,3.281,4641.3,4641.0,0.9187]
[1755259058658,3.281,4641.3,4641.0,0.446]
[1755259058858,3.281,4641.3,4641.1,0.4727]
[1755259059090,3.281,4641.3,4641.2,0.78022478]
[1755259059462,3.281,4641.3,4641.2,1.22622478]
[1755259060070,3.281,4641.3,4641.2,0.78022478]
[1755259060270,3.281,4641.3,4641.2,0.4727]
[1755259061398,3.281,4641.3,4641.0,0.0008]
[1755259061579,3.281,4641.3,4641.0,0.4735]
[1755259062967,5.43557702,4641.3,4641.0,0.0008]
[1755259063175,2.70466161,4641.1,4641.0,0.0008]
[1755259063422,6.09366161,4641.1,4641.0,0.0008]
[1755259063709,7.00056161,4641.1,4641.0,0.0008]
[1755259065794,7.00256161,4641.1,4641.0,0.0008]
[1755259066417,3.941,4641.1,4641.0,0.0008]
[1755259066771,0.002,4641.1,4641.0,0.0008]
[1755259067014,3.391,4641.1,4641.0,0.0008]
[1755259067708,0.002,4641.1,4641.0,6.07420803]
[1755259067866,0.002,4641.1,4641.0,6.68182883]
[1755259068068,0.002,4641.1,4641.0,4.0811208]
[1755259068516,0.002,4641.1,4641.0,6.23582883]
[1755259069713,0.0012,4641.1,4641.0,6.23582883]
[1755259071218,0.0012,4641.1,4641.0,5.76312883]
[1755259071423,0.0012,4641.1,4641.0,6.68182883]
[1755259071574,0.0012,4641.1,4641.0,6.78982883]
[1755259072299,0.0012,4641.1,4641.0,6.34382883]
[1755259074013,0.0012,4641.1,4641.0,6.78982883]
[1755259074691,0.0012,4641.1,4641.0,5.87112883]
[1755259077032,0.0012,4641.1,4641.0,6.32772883]
[1755259077190,0.0012,4641.1,4641.0,6.77372883]
[1755259077727,0.0012,4641.1,4641.0,6.32772883]
[1755259078834,0.0012,4641.1,4641.0,5.87112883]
[1755259079004,0.0012,4641.1,4641.0,3.7164208]
[1755259080321,0.4823,4641.1,4641.0,3.6084208]
[1755259080633,0.918,4641.1,4641.0,0.0008]
[1755259080936,1.026,4641.1,4641.0,0.0008]
[1755259081499,1.0252,4641.1,4641.0,0.0008]
[1755259083434,0.1084,4641.1,4641.0,0.0018]
[1755259083594,0.0004,4641.1,4641.0,0.21765188]
[1755259083799,0.0004,4641.1,4641.0,0.0018]
[1755259084532,0.0004,4641.1,4641.0,5.15650803]
[1755259084735,0.0004,4641.1,4641.0,5.61310803]
[1755259084919,0.0004,4641.1,4641.0,5.72110803]
[1755259085534,0.0004,4641.1,4641.0,6.16710803]
[1755259085732,0.0004,4641.1,4641.0,7.32749809]
[1755259087333,0.0004,4641.1,4641.0,6.88149809]
[1755259088236,0.0004,4641.1,4641.0,6.42489809]
[1755259103300,0.0004,4641.1,4641.0,6.88529809]
[1755259103696,0.0004,4641.1,4641.0,6.42489809]
[1755259107204,0.8824,4641.1,4641.0,6.42489809]
[1755259107408,0.8824,4641.1,4641.0,4.27019006]
[1755259107612,0.8824,4641.1,4641.0,6.2798]
[1755259111988,0.8824,4641.1,4641.0,0.0018]
[1755259111989,0.8816,4641.1,4641.0,0.0018]
[1755259112219,0.9896,4641.1,4641.0,0.0018]
[1755259112725,3.14426161,4641.1,4641.0,0.0018]
[1755259112931,0.9896,4641.1,4641.0,0.0018]
[1755259113089,3.14426161,4641.1,4641.0,0.0018]
[1755259114228,0.9896,4641.1,4641.0,0.0018]
[1755259115633,0.108,4641.1,4641.0,0.0018]
[1755259115787,0.11,4641.5,4641.0,5.76480921]
[1755259116331,0.4511,4641.4,4641.0,5.76480921]
[1755259117133,0.002,4641.1,4641.0,8.76480921]
[1755259117494,0.002,4641.1,4641.0,9.77960921]
[1755259118554,0.002,4641.1,4641.0,9.33320921]
[1755259119247,0.002,4641.1,4641.0,8.87280921]
[1755259119621,0.002,4641.1,4641.0,9.33320921]
[1755259123767,0.0012,4641.1,4641.0,9.33320921]
[1755259125172,0.0012,4641.1,4641.0,8.87280921]
[1755259125375,0.0012,4641.1,4641.0,3.44013485]
[1755259125541,0.8832,4641.1,4641.0,0.1098]
[1755259125741,0.8832,4641.1,4641.0,0.0018]
[1755259126182,3.58786161,4641.1,4641.0,0.0018]
[1755259126547,1.4332,4641.1,4641.0,0.0018]
[1755259127174,3.58786161,4641.1,4641.0,0.0018]
[1755259127377,1.4332,4641.1,4641.0,0.0018]
[1755259128748,0.9912,4641.1,4641.0,0.0018]
[1755259129193,0.8832,4641.1,4641.0,0.0018]
[1755259131888,0.0012,4641.1,4641.0,0.0018]
[1755259133388,0.0012,4641.1,4641.0,3.0018]
[1755259134902,0.9327,4641.1,4641.0,3.0018]
[1755259136554,0.5327,4641.1,4641.0,3.0018]
[1755259138870,0.4323,4641.1,4641.0,3.0018]
[1755259139070,0.108,4641.2,4641.0,3.0018]
[1755259140891,0.002,4641.5,4641.0,3.84535964]
[1755259141204,0.108,4641.4,4641.1,3.277]
[1755259141574,0.002,4641.5,4641.3,2.15456876]
[1755259141787,0.002,4641.5,4641.4,3.02154522]
[1755259141983,0.002,4641.5,4641.4,5.15452234]
[1755259142308,0.002,4641.5,4641.4,6.305845]
[1755259143891,0.002,4641.5,4641.4,7.232145]
[1755259144227,0.002,4641.5,4641.4,6.778245]
[1755259144425,0.002,4641.5,4641.4,6.305845]
[1755259145227,0.002,4641.5,4641.4,4.15132266]
[1755259145802,0.9335,4641.5,4641.3,0.108]
[1755259146124,0.4323,4641.4,4641.3,6.384]
[1755259146821,0.002,4641.5,4641.4,3.0]
[1755259147021,0.002,4641.5,4641.3,3.384]
[1755259147186,0.002,4641.5,4641.4,0.55394275]
[1755259147584,0.002,4641.5,4641.4,3.55394275]
[1755259150022,0.4343,4641.5,4641.4,3.55394275]
[1755259150444,0.9335,4641.5,4641.4,3.55394275]
[1755259150650,0.9335,4641.5,4641.4,3.0]
[1755259151235,1.0415,4641.5,4641.4,3.0]
[1755259151760,0.11,4641.5,4641.3,3.276]
[1755259152549,0.11,4641.5,4641.2,3.276]
[1755259154030,0.1092,4641.5,4641.2,3.276]
[1755259154430,0.1092,4641.5,4641.1,3.2768]
[1755259154639,0.1092,4641.5,4641.2,3.0]
[1755259157728,0.5415,4641.5,4641.2,3.0]
[1755259157938,0.1092,4641.5,4641.2,3.0]
[1755259158138,2.58682282,4641.4,4641.2,3.0]
[1755259158339,2.58682282,4641.4,4641.1,3.2768]
[1755259158340,0.4323,4641.3,4641.1,0.0008]
[1755259158558,0.4323,4641.3,4641.1,3.2768]
[1755259159588,2.58690297,4641.3,4641.1,3.2768]
[1755259159882,2.58690297,4641.3,4641.1,0.0008]
[1755259160282,0.4323,4641.3,4641.1,0.0008]
[1755259160668,0.4992,4641.4,4641.1,0.0008]
[1755259160842,0.4323,4641.4,4641.1,0.0008]
[1755259161046,2.26371372,4641.5,4641.1,0.0008]
[1755259161952,0.1092,4641.5,4641.1,0.0008]
[1755259162187,0.1092,4641.5,4641.1,1.34355263]
[1755259162361,0.1092,4641.5,4641.1,1.80225263]
[1755259162570,0.1092,4641.5,4641.2,3.275]
[1755259163273,0.0012,4641.5,4641.3,3.4885]
[1755259163478,0.0012,4641.5,4641.4,0.77265526]
[1755259163682,0.0012,4641.5,4641.4,1.71985526]
[1755259164389,0.0012,4641.5,4641.4,4.99485526]
[1755259166094,0.0012,4641.5,4641.4,4.04765526]
[1755259169078,0.0012,4641.5,4641.4,0.77265526]
[1755259169267,0.0012,4641.5,4641.4,3.275]
[1755259171307,0.4305,4641.5,4641.2,3.108]
[1755259171604,0.0012,4641.5,4641.2,3.1088]
[1755259171788,2.15568511,4641.5,4641.2,0.1088]
[1755259172615,2.15456876,4641.3,4641.2,0.1088]
[1755259172784,2.15456876,4641.3,4641.2,0.0008]
[1755259173105,3.05106876,4641.3,4641.2,0.0008]
[1755259174330,4.46217971,4641.3,4641.2,0.0008]
[1755259179334,2.70484732,4640.7,4638.2,0.086331]
[1755259179533,5.99921013,4640.7,4638.8,0.9472]
[1755259179830,7.34000374,4640.7,4638.8,0.9472]
[1755259180029,8.05490287,4640.7,4640.2,0.001]
[1755259181646,7.59124645,4640.7,4640.2,0.001]
[1755259187543,24.58913018,4640.7,4640.6,1e-08]
[1755259187851,24.58913018,4640.7,4640.2,0.001]
[1755259187852,5.70489376,4640.6,4640.5,1e-08]
[1755259188158,7.92432432,4640.6,4640.5,1e-08]
[1755259189029,8.01067632,4640.6,4640.5,1e-08]
[1755259189430,8.11867632,4640.6,4640.5,1e-08]
[1755259191516,8.11867632,4640.6,4640.5,0.00080001]
[1755259191716,15.15867631,4640.6,4640.5,0.00080001]
[1755259195637,17.53717631,4640.6,4640.5,0.00080001]
[1755259195842,18.45427631,4640.6,4640.5,0.00080001]
[1755259196293,18.45347631,4640.6,4640.5,0.00080001]
[1755259199818,17.98277631,4640.6,4640.5,0.00080001]
[1755259200306,10.60337631,4640.6,4640.5,0.00080001]
[1755259200463,12.46909375,4640.6,4640.5,0.92270001]
[1755259200663,12.46909375,4640.6,4640.5,0.00080001]
[1755259201176,13.01909375,4640.6,4640.5,0.00080001]
[1755259204314,9.19409375,4640.6,4640.5,0.00080001]
[1755259204496,7.03999999,4640.6,4640.5,0.92270001]
[1755259204703,10.31499999,4640.6,4640.5,0.92270001]
[1755259205100,3.275,4640.6,4640.5,0.92270001]
[1755259205401,3.275,4640.8,4640.5,0.92270001]
[1755259205602,0.0012,4641.5,4640.6,1.22966718]
[1755259205819,3.2762,4641.5,4640.6,3.9219]
[1755259205989,0.0012,4641.5,4640.7,0.9219]
[1755259206192,2.15480089,4640.8,4640.7,0.9219]
[1755259207229,3.275,4640.9,4640.7,0.9219]
[1755259207230,5.42975706,4640.9,4640.7,0.9219]
[1755259207604,5.42975706,4640.9,4640.8,0.9219]
[1755259208124,2.15485333,4640.7,4640.5,0.00080001]
[1755259208502,3.275,4640.6,4640.5,0.00080001]
[1755259208727,5.42989376,4640.6,4640.5,0.00080001]
[1755259208933,6.18836456,4640.6,4640.5,0.00080001]
[1755259209222,5.42989376,4640.6,4640.5,0.00080001]
[1755259210384,5.53789376,4640.6,4640.5,0.00080001]
[1755259211114,6.08789376,4640.6,4640.5,0.00080001]
[1755259211427,6.73549176,4640.6,4640.5,0.00080001]
[1755259211631,6.08789376,4640.6,4640.5,0.00080001]
[1755259211788,7.00387456,4640.6,4640.5,0.00080001]
[1755259212208,7.92097456,4640.6,4640.5,0.00080001]
[1755259213633,8.38393745,4640.6,4640.5,0.00080001]
[1755259214225,7.92097456,4640.6,4640.5,0.00080001]
[1755259214425,8.38393896,4640.6,4640.5,0.00080001]
[1755259216710,8.38593896,4640.6,4640.5,0.00080001]
[1755259216908,8.47228696,4640.6,4640.5,0.00080001]
[1755259217842,8.47228696,4640.6,4640.0,0.001]
[1755259217843,0.55,4640.5,4640.0,0.001]
[1755259218134,2.70512596,4640.1,4640.0,0.001]
[1755259218301,6.01048877,4640.1,4640.0,0.001]
[1755259218502,7.37119036,4640.1,4640.0,0.001]
[1755259219235,2.70521886,4639.9,4639.8,1e-08]
[1755259219403,6.92756247,4639.9,4639.8,1e-08]
[1755259219598,10.94986406,4639.9,4639.8,1e-08]
[1755259219803,12.17731029,4639.9,4639.8,1e-08]
[1755259220112,11.59710912,4639.9,4639.8,1e-08]
[1755259220302,12.17542785,4639.9,4639.8,1e-08]
[1755259220500,12.59751992,4639.9,4639.8,1e-08]
[1755259221603,12.2199637,4639.9,4639.8,1e-08]
[1755259222115,12.9928766,4639.9,4639.8,1e-08]
[1755259222349,12.2199637,4639.9,4639.8,1e-08]
[1755259223351,12.01920119,4639.9,4639.8,1e-08]
[1755259224149,12.61632245,4639.9,4639.8,1e-08]
[1755259224324,12.61609063,4639.9,4639.8,1e-08]
[1755259224525,10.35125613,4639.9,4639.8,1e-08]
[1755259224971,10.79325613,4639.9,4639.8,1e-08]
[1755259225470,11.83305613,4639.9,4639.8,1e-08]
[1755259225959,11.54896013,4639.9,4639.8,1e-08]
[1755259226163,5.26196013,4639.9,4639.8,1e-08]
[1755259226364,5.97231093,4639.9,4639.8,0.46070001]
[1755259226565,5.97231093,4639.9,4639.8,1e-08]
[1755259226753,6.60866493,4639.9,4639.8,1e-08]
[1755259228964,1.16644607,4639.9,4639.8,0.91770001]
[1755259229173,0.42209207,4639.9,4639.8,0.91770001]
[1755259229464,4.36809207,4639.9,4639.8,1e-08]
[1755259229665,3.81809207,4639.9,4639.8,0.45700001]
[1755259229892,3.81809207,4639.9,4639.8,0.91770001]
[1755259230230,3.81809207,4639.9,4639.8,1e-08]
[1755259230431,7.34712014,4639.9,4639.8,1e-08]
[1755259230637,7.92327414,4639.9,4639.8,1e-08]
[1755259231026,10.92327414,4639.9,4639.8,1e-08]
[1755259231237,11.38571316,4639.9,4639.8,1e-08]
[1755259232042,13.14185389,4639.9,4639.8,1e-08]
[1755259233073,13.71987515,4639.9,4639.8,1e-08]
[1755259233570,13.14185389,4639.9,4639.8,1e-08]
[1755259234681,13.71987515,4639.9,4639.8,1e-08]
[1755259234876,13.14185389,4639.9,4639.8,1e-08]
[1755259237068,20.18185388,4639.9,4639.8,1e-08]
[1755259237275,20.38246981,4639.9,4639.8,1e-08]
[1755259237686,20.58325078,4639.9,4639.8,1e-08]
[1755259238391,21.35616368,4639.9,4639.8,1e-08]
[1755259238690,21.35536368,4639.9,4639.8,1e-08]
[1755259240295,21.35375609,4639.9,4639.8,1e-08]
[1755259240793,20.86395609,4639.9,4639.8,1e-08]
[1755259241098,21.35375609,4639.9,4639.8,1e-08]
[1755259241507,20.58165078,4639.9,4639.8,1e-08]
[1755259241677,20.58165078,4639.9,4639.8,0.00080001]
[1755259242101,21.35298812,4639.9,4639.8,0.00080001]
[1755259242425,19.64985078,4639.9,4639.8,0.00080001]
[1755259242604,20.09185078,4639.9,4639.8,0.00080001]
[1755259242801,20.58165078,4639.9,4639.8,0.00080001]
[1755259244273,20.58201693,4639.9,4639.8,0.00080001]
[1755259248280,21.74138629,4639.9,4639.8,0.00080001]
[1755259248479,20.88825575,4639.9,4639.8,0.00080001]
[1755259249350,20.88825575,4639.9,4639.1,1e-08]
[1755259249351,0.55,4639.3,4639.1,1e-08]
[1755259249555,9.00890686,4639.2,4639.1,1e-08]
[1755259249853,0.55,4638.9,4638.8,1e-08]
[1755259250017,8.98013194,4638.9,4638.8,1e-08]
[1755259250216,10.34404798,4638.9,4638.8,1e-08]
[1755259250416,11.11645258,4638.9,4638.8,1e-08]
[1755259250616,10.34404798,4638.9,4638.8,1e-08]
[1755259250815,11.11631157,4638.9,4638.8,1e-08]
[1755259251952,10.77484798,4638.9,4638.8,1e-08]
[1755259252460,11.11592924,4638.9,4638.8,1e-08]
[1755259252826,11.11579809,4638.9,4638.8,1e-08]
[1755259253227,10.34391683,4638.9,4638.8,1e-08]
[1755259253476,7.05991683,4638.9,4638.8,0.89310001]
[1755259253628,10.33994813,4638.9,4638.8,0.89310001]
[1755259254155,10.33994813,4638.9,4638.8,1e-08]
[1755259254464,10.33990976,4638.9,4638.8,1e-08]
[1755259254670,10.33884238,4638.9,4638.8,0.89310001]
[1755259254854,10.13788711,4638.9,4638.8,0.89310001]
[1755259255055,10.33883106,4638.9,4638.8,0.89310001]
[1755259255242,10.33883106,4638.9,4638.8,1e-08]
[1755259255828,9.76006642,4638.9,4638.8,1e-08]
[1755259256686,4.05577169,4638.9,4638.8,1e-08]
[1755259256967,3.284,4638.9,4638.8,0.89310001]
[1755259257171,5.43968345,4638.9,4638.8,0.89310001]
[1755259257471,5.98968345,4638.9,4638.8,0.89310001]
[1755259258133,5.98968345,4638.9,4638.8,0.43540001]
[1755259259432,6.45313411,4638.9,4638.8,1e-08]
[1755259260228,7.46884995,4638.9,4638.8,1e-08]
[1755259260435,6.45313411,4638.9,4638.8,1e-08]
[1755259260662,6.45313411,4638.9,4638.8,0.43540001]
[1755259260859,3.16913411,4638.9,4638.8,0.43540001]
[1755259261060,5.98968345,4638.9,4638.8,0.43540001]
[1755259261261,6.45313411,4638.9,4638.8,0.43540001]
[1755259262872,13.4931341,4638.9,4638.8,0.43540001]
[1755259263643,10.2091341,4638.9,4638.8,0.43540001]
[1755259263973,13.4941341,4638.9,4638.8,0.43540001]
[1755259264173,13.4941341,4638.9,4638.8,1e-08]
[1755259264744,13.48966601,4638.9,4638.8,1e-08]
[1755259265338,13.97196601,4638.9,4638.8,1e-08]
[1755259265540,14.55067128,4638.9,4638.8,1e-08]
[1755259265938,14.06837128,4638.9,4638.8,1e-08]
[1755259266366,14.55067128,4638.9,4638.8,1e-08]
[1755259266772,14.17637128,4638.9,4638.8,1e-08]
[1755259267474,14.65867128,4638.9,4638.8,1e-08]
[1755259268549,17.86016308,4638.9,4638.8,1e-08]
[1755259268752,17.71225781,4638.9,4638.8,1e-08]
[1755259269289,17.91355035,4638.9,4638.8,1e-08]
[1755259269585,3.13191663,4638.4,4638.3,1e-08]
[1755259269769,7.85379433,4638.4,4638.3,1e-08]
[1755259269973,8.78018218,4638.4,4638.3,1e-08]
[1755259270856,8.78025659,4638.4,4638.3,1e-08]
[1755259271761,8.78025659,4638.4,4638.1,0.04]
[1755259271762,2.70600879,4638.2,4638.1,1e-08]
[1755259272086,7.056605,4638.2,4638.1,1e-08]
[1755259272403,7.50069285,4638.2,4638.1,1e-08]
[1755259273878,8.34468406,4638.2,4637.3,0.001]
[1755259274060,4.13045683,4637.6,4637.1,0.04]
[1755259274385,3.55,4637.3,4637.1,0.04]
[1755259274586,5.99047373,4637.2,4637.1,0.04]
[1755259274799,5.99047373,4637.2,4636.1,0.04]
[1755259274800,2.70693887,4636.2,4636.1,0.04]
[1755259274998,2.70693887,4636.2,4636.1,0.4754]
[1755259274999,5.99293887,4636.2,4636.1,0.4754]
[1755259275209,2.15740421,4635.2,4635.1,0.04]
[1755259275503,5.45740421,4635.2,4635.1,0.04]
[1755259275709,6.00740421,4635.2,4635.1,0.04]
[1755259275893,2.70740421,4635.2,4635.1,0.04]
[1755259276220,6.02040421,4635.2,4635.1,0.04]
[1755259277155,2.70740421,4635.2,4635.1,0.04]
[1755259277355,2.70740421,4635.2,4635.1,0.4754]
[1755259277356,3.315,4635.2,4635.1,0.4754]
[1755259277664,6.02240421,4635.2,4635.1,0.4754]
[1755259278374,6.02240421,4635.2,4635.1,0.04]
[1755259279559,6.02240421,4635.2,4635.1,0.4754]
[1755259280198,6.02240421,4635.2,4635.1,0.04]
[1755259280906,6.02160421,4635.2,4635.1,0.04]
[1755259281461,6.50390421,4635.2,4635.1,0.04]
[1755259283008,6.02160421,4635.2,4635.1,0.04]
[1755259283983,6.58110421,4635.2,4635.1,0.04]
[1755259284184,7.45494651,4635.2,4635.1,0.04]
[1755259284387,7.92484651,4635.2,4635.1,0.04]
[1755259284906,2.70786975,4634.2,4634.1,0.04]
[1755259285074,6.02186975,4634.2,4634.1,0.04]
[1755259285275,7.05126975,4634.2,4634.1,0.04]
[1755259285476,7.75343753,4634.2,4634.1,0.04]
[1755259285804,6.12986975,4634.2,4634.1,0.04]
[1755259286411,6.58136975,4634.2,4634.1,0.04]
[1755259286799,6.13186975,4634.2,4634.1,0.04]
[1755259287812,7.05326975,4634.2,4634.1,0.04]
[1755259288117,6.13086975,4634.2,4634.1,0.04]
[1755259288609,0.108,4634.2,4634.1,0.04]
[1755259288777,0.108,4634.2,4634.1,0.5002]
[1755259289173,0.2,4634.3,4634.1,0.76602501]
[1755259289595,0.2,4634.3,4634.1,0.30582501]
[1755259289789,0.2,4634.3,4634.2,0.4602]
[1755259290672,0.2,4634.3,4634.2,2.61806975]
[1755259290872,0.2,4634.3,4634.2,5.61806975]
[1755259291217,3.317,4635.2,4634.3,3.0]
[1755259291518,0.4515,4636.5,4634.2,1.3519604]
[1755259291519,0.002,4637.2,4634.4,3.48177776]
[1755259291716,0.002,4637.2,4634.2,0.7837604]
[1755259291717,0.108,4636.0,4635.1,0.108]
[1755259291869,3.426,4636.2,4635.5,0.108]
[1755259292066,3.33736281,4636.1,4634.2,5.15786588]
[1755259292271,0.108,4635.8,4635.1,0.108]
[1755259292495,3.318,4635.7,4635.2,0.4602]
[1755259292680,3.318,4635.7,4635.3,0.4602]
[1755259292909,2.15744246,4635.2,4634.2,2.15783165]
[1755259293078,3.319,4635.1,4634.3,0.4602]
[1755259293284,0.108,4634.8,4634.3,0.4602]
[1755259293519,3.319,4634.7,4634.4,0.4602]
[1755259293698,0.108,4634.8,4634.5,0.4602]
[1755259293904,3.427,4634.8,4634.6,0.4602]
[1755259294278,3.427,4634.8,4634.2,2.2658265]
[1755259294613,3.427,4634.8,4634.5,0.4602]
[1755259294973,3.427,4634.8,4634.6,0.4602]
[1755259295174,3.427,4634.8,4634.7,0.4602]
[1755259295973,0.55,4635.7,4634.7,0.4602]
[1755259296212,0.108,4635.1,4634.7,0.4602]
[1755259296511,3.318,4635.0,4634.8,0.4602]
[1755259296814,3.318,4635.0,4634.7,0.27259208]
[1755259296988,3.318,4635.0,4634.9,0.4602]
[1755259297584,0.108,4635.1,4634.9,0.4602]
[1755259297819,3.318,4635.6,4635.0,0.4602]
[1755259298015,3.317,4636.0,4635.4,2.15727089]
[1755259298312,3.318,4636.3,4635.5,0.4602]
[1755259298498,0.002,4636.2,4635.7,0.108]
[1755259298904,2.15894204,4636.2,4635.7,0.108]
[1755259299286,0.002,4636.2,4635.7,0.108]
[1755259299683,0.002,4636.2,4635.8,0.68672491]
[1755259299887,0.002,4636.2,4635.8,0.4602]
[1755259300119,0.002,4636.2,4635.7,0.108]
[1755259300120,0.002,4636.2,4635.9,0.4602]
[1755259300530,0.002,4636.2,4636.0,0.4602]
[1755259301084,0.002,4636.2,4636.1,0.4602]
[1755259301289,0.002,4636.2,4635.7,0.108]
[1755259301526,0.002,4636.2,4635.8,0.4602]
[1755259301832,0.002,4636.2,4635.7,0.108]
[1755259302037,2.61044589,4636.2,4635.7,0.108]
[1755259302326,0.002,4636.2,4635.7,0.1088]
[1755259302533,0.002,4636.2,4635.8,0.2266056]
[1755259302695,0.002,4636.2,4635.8,0.4602]
[1755259303036,0.002,4636.2,4635.7,0.1088]
[1755259303189,0.002,4636.2,4635.9,0.4602]
[1755259303700,0.002,4636.2,4635.7,0.1088]
[1755259304106,0.002,4636.2,4635.7,0.569]
[1755259304513,2.15698539,4636.1,4635.7,0.569]
[1755259304916,2.15704296,4636.0,4635.7,0.1088]
[1755259305137,2.15699143,4636.1,4635.7,0.1088]
[1755259305320,2.15703687,4636.0,4635.7,0.1088]
[1755259305723,0.002,4636.2,4635.7,0.1088]
[1755259305933,2.15712498,4635.8,4635.7,0.1088]
[1755259306512,2.15712498,4635.8,4635.7,0.0008]
[1755259307041,2.60862498,4635.8,4635.7,0.0008]
[1755259307405,3.18652498,4635.8,4635.7,0.0008]
[1755259308014,0.5595,4635.8,4635.7,0.0008]
[1755259308220,2.71662498,4635.8,4635.7,0.0008]
[1755259308516,0.5595,4635.8,4635.7,0.0008]
[1755259308735,2.71662498,4635.8,4635.7,0.0008]
[1755259309043,2.26512498,4635.8,4635.7,0.0008]
[1755259309346,0.108,4635.8,4635.7,0.0008]
[1755259309745,0.108,4635.8,4635.7,0.461]
[1755259309937,5.57812498,4635.8,4635.7,0.0008]
[1755259310335,6.02962498,4635.8,4635.7,0.0008]
[1755259312544,3.8725,4635.8,4635.7,0.0008]
[1755259313041,3.421,4635.8,4635.7,0.0008]
[1755259315448,3.418,4635.8,4635.7,0.0008]
[1755259320855,3.8704,4635.8,4635.7,0.0008]
[1755259322125,0.11,4636.1,4635.7,0.0008]
[1755259322465,0.002,4636.1,4635.9,2.15704496]
[1755259322630,0.002,4636.1,4636.0,0.2718145]
[1755259322959,0.002,4636.1,4635.9,2.15784496]
[1755259323140,0.0012,4636.1,4635.9,2.15784496]
[1755259323476,0.0012,4636.1,4636.0,19.20472368]
[1755259323645,0.0012,4636.1,4636.0,19.29115337]
[1755259323830,0.0012,4636.1,4636.0,5.71733192]
[1755259324036,0.0012,4636.1,4636.0,7.86223175]
[1755259337996,0.0012,4636.1,4636.0,7.40993175]
[1755259339283,0.9259,4636.1,4636.0,5.26503192]
[1755259341407,0.0012,4636.1,4636.0,5.26503192]
[1755259341607,0.4536,4636.1,4636.0,5.26503192]
[1755259342631,0.9051,4636.1,4636.0,5.26503192]
[1755259343011,0.9051,4636.1,4636.0,5.26583192]
[1755259343416,0.4536,4636.1,4636.0,5.26583192]
[1755259344502,0.0012,4636.1,4636.0,5.26583192]
[1755259344702,0.0012,4636.1,4636.0,6.33802486]
[1755259344897,0.0012,4636.1,4636.0,6.80962486]
[1755259348330,0.0012,4636.1,4636.0,10.10562486]
[1755259349435,0.0012,4636.1,4636.0,9.63402486]
[1755259350508,0.0012,4636.1,4636.0,9.63502486]
[1755259350940,0.0012,4636.1,4636.0,6.33902486]
[1755259351148,0.0012,4636.1,4636.0,9.63502486]
[1755259351332,0.4541,4636.1,4636.0,9.63502486]
[1755259351861,0.4533,4636.1,4636.0,9.63502486]
[1755259353057,0.0004,4636.1,4636.0,9.63502486]
[1755259354258,0.0004,4636.1,4636.0,10.10662486]
[1755259357053,0.9048,4636.1,4636.0,0.0018]
[1755259357228,0.9048,4636.1,4635.2,0.001]
[1755259357569,0.9044,4636.0,4635.4,3.0]
[1755259357747,0.0004,4636.1,4635.5,3.294]
[1755259358052,0.9044,4635.9,4635.6,3.0]
[1755259358359,0.9044,4635.8,4635.6,5.15721618]
[1755259358567,0.0004,4636.1,4635.6,3.0]
[1755259358736,0.9044,4635.7,4635.6,3.0]
[1755259359257,0.9044,4635.7,4635.3,2.15734869]
[1755259359458,0.9044,4635.6,4635.4,2.15730785]
[1755259359654,0.0004,4636.1,4635.5,3.0]
[1755259359860,2.15708793,4635.9,4635.5,3.0]
[1755259360059,2.15708793,4635.9,4635.3,3.295]
[1755259360225,0.9044,4635.8,4635.3,3.295]
[1755259360642,0.9044,4635.7,4635.3,3.295]
[1755259360858,0.9044,4635.6,4635.4,3.0]
[1755259361349,0.9044,4635.5,4635.4,3.0]
[1755259361737,0.9044,4635.5,4635.4,5.15731112]
[1755259362056,0.9044,4635.5,4635.4,3.0]
[1755259362218,0.9044,4635.5,4635.4,5.15731112]
[1755259363043,0.9044,4635.5,4635.4,3.0]
[1755259363447,0.9044,4635.5,4635.4,5.15731112]
[1755259363643,0.9044,4635.5,4635.4,3.0]
[1755259363847,0.9044,4635.5,4635.4,5.15731112]
[1755259364357,0.4529,4635.5,4635.4,5.15731112]
[1755259364599,0.0004,4636.1,4635.5,2.15726026]